fUSD/lending_fUSD_20250227
["ID","MTS","AMOUNT","RATE_DAILY","PERIOD"]
[354711107,1740636632296,-272.2,0.00051863,2]
[354711109,1740636632306,-2787.50831529,0.00052189,15]
[354711111,1740636632315,-1000.0,0.000525,7]
[354711112,1740636632324,-207.37491062,0.00052795,12]
[354711113,1740636632334,-2787.50831529,0.00053809,15]
[354711114,1740636632343,-272.2,0.00054127,2]
[354711115,1740636632353,-153.79,0.00054384,120]
[354711116,1740636632362,-678.0,0.000548,30]
[354711117,1740636632371,-232.0,0.000548,30]
[354711118,1740636632380,-207.37491062,0.00054953,13]
[354711119,1740636632391,-2787.50831529,0.00055429,15]
[354711120,1740636632400,-272.2,0.00056391,2]
[354711121,1740636632409,-184.10500048,0.000565,30]
[354711122,1740636632419,-188.0,0.00056562,30]
[354711123,1740636632428,-1000.0,0.00056731,120]
[354711124,1740636632437,-475.0,0.00057,30]
[354711125,1740636632447,-1008.0,0.00057,30]
[354711126,1740636632456,-2787.50831529,0.00057049,15]
[354711127,1740636632465,-207.37491062,0.00057111,14]
[354711128,1740636632475,-188.0,0.00057145,30]
[354711129,1740636632484,-684.479,0.00057172,111]
[354711130,1740636632494,-188.0,0.00057728,30]
[354711131,1740636632503,-188.0,0.00058311,30]
[354711132,1740636632513,-152.64599271,0.00058311,30]
[354711133,1740636632523,-272.2,0.00058655,2]
[354711134,1740636632533,-2787.50831529,0.0005867,15]
[354711135,1740636632542,-188.0,0.00058894,30]
[354711136,1740636632552,-207.37491062,0.00059268,14]
[354711137,1740636632561,-188.0,0.00059477,30]
[354711138,1740636632570,-176.20415818,0.000599,79]
[354711139,1740636632579,-869.16571896,0.000599,31]
[354711140,1740636632588,-7500.0,0.000599,120]
[354711141,1740636632597,-219.5937484,0.00059999,120]
[354711142,1740636632606,-253.70033535,0.00059999,120]
[354711143,1740636632618,-12267.83484257,0.0006,52]
[354711144,1740636632630,-355598.03416805,0.0006,2]
[354711145,1740636632644,-518.32839176,0.0006,2]
[354711149,1740636637503,-1774.37970282,0.0006,2]
[354711150,1740636637515,-1040.67,0.0006,2]
[354711151,1740636637528,-646.53171669,0.0006,2]
[354711152,1740636637542,-712.33,0.0006,2]
[354711153,1740636637555,-2219.533677,0.0006,2]
[354711154,1740636637567,-1109.58021,0.0006,2]
[354711155,1740636637579,-8612.89999998,0.0006,2]
[354711156,1740636637591,-417.93362683,0.0006,2]
[354711157,1740636637604,-10736.77896251,0.0006,2]
[354711158,1740636637617,-6697.31718208,0.0006,2]
[354711159,1740636637633,-2437.59954358,0.0006,2]
[354711160,1740636637649,-13885.02116116,0.0006,2]
[354711161,1740636637663,-72641.70503603,0.0006,2]
[354711162,1740636637675,-487.64485839,0.0006,2]
[354711163,1740636637688,-252.90102083,0.0006,2]
[354711164,1740636637708,-2547.105,0.0006,2]
[354711165,1740636637721,-20000.0,0.0006,2]
[354711166,1740636637752,-2778.34344831,0.0006,2]
[354711167,1740636637764,-866.54284436,0.0006,2]
[354711168,1740636637787,-611.70497818,0.0006,2]
[354711169,1740636637799,-9440.0,0.0006,2]
[354711170,1740636637811,-10865.48604417,0.0006,2]
[354711171,1740636637823,-5462.24845647,0.0006,2]
[354711172,1740636637835,-9109.46849774,0.0006,2]
[354711173,1740636637846,-1572.82199258,0.0006,2]
[354711174,1740636637859,-825.62884202,0.0006,2]
[354711352,1740636639663,-1028.93609989,0.0006,2]
[354711354,1740636639675,-682.60523184,0.0006,2]
[354711356,1740636639687,-1034.355,0.0006,2]
[354711359,1740636639709,-955.0,0.0006,2]
[354711362,1740636639723,-3277.7746566,0.0006,2]
[354711364,1740636639735,-504.4761614,0.0006,2]
[354711366,1740636639748,-2429.4141106,0.0006,2]
[354711369,1740636639762,-26340.36827717,0.0006,2]
[354711377,1740636639831,-1145.99741606,0.0006,2]
[354711379,1740636639844,-859.84851063,0.0006,2]
[354711381,1740636639856,-620.71798774,0.0006,2]
[354711383,1740636639868,-654.839996,0.0006,2]
[354711385,1740636639880,-666.82909112,0.0006,2]
[354711387,1740636639893,-19232.898044,0.0006,2]
[354711389,1740636639905,-52314.45260923,0.0006,2]
[354711391,1740636639917,-3440.5395926,0.0006,2]
[354711393,1740636639932,-351.42,0.0006,2]
[354711395,1740636639944,-500.0,0.0006,2]
[354711396,1740636639956,-577.46205938,0.0006,2]
[354711398,1740636639969,-2222.62780469,0.0006,2]
[354711400,1740636639981,-10953.2581042,0.0006,2]
[354711408,1740636640068,-947.72946,0.0006,2]
[354711412,1740636640102,-6492.98264759,0.0006,2]
[354711414,1740636640115,-478.24871545,0.0006,2]
[354711416,1740636640127,-664.01134579,0.0006,2]
[354711731,1740636643532,-166.81354614,0.000599,28]
[354711736,1740636643545,-55813.09061365,0.0006,2]
[354711740,1740636643558,-14948.63452145,0.0006,2]
[354711768,1740636643735,-61653.07095395,0.0006,2]
[354711958,1740636645607,-8848.34865283,0.0006,2]
[354711959,1740636645621,-8887.0000005,0.0006,2]
[354711961,1740636645632,-506.62630079,0.0006,2]
[354711963,1740636645643,-352.72799642,0.0006,2]
[354711965,1740636645654,-2513.09890421,0.0006,2]
[354711967,1740636645665,-1422.96362889,0.0006,2]
[354711970,1740636645676,-1242.48499973,0.0006,2]
[354711972,1740636645688,-485.305,0.0006,2]
[354711974,1740636645699,-631.44,0.0006,2]
[354711976,1740636645710,-1356.4999996,0.0006,2]
[354711978,1740636645721,-434.44680726,0.0006,2]
[354711980,1740636645733,-19852.51822778,0.0006,2]
[354711983,1740636645745,-3758.07314566,0.0006,2]
[354711985,1740636645756,-2047.61223142,0.0006,2]
[354711987,1740636645767,-220464.69808672,0.0006,2]
[354711989,1740636645778,-643.3159777,0.0006,2]
[354711991,1740636645791,-192999.99999994,0.0006,2]
[354711994,1740636645802,-107828.01855823,0.0006,2]
[354711996,1740636645813,-1849.17996934,0.0006,2]
[354711999,1740636645840,-6167.03950384,0.0006,2]
[354712001,1740636645851,-2879.35235501,0.0006,2]
[354712004,1740636645862,-1444.60801113,0.0006,2]
[354712006,1740636645873,-8361.92164895,0.0006,2]
[354712008,1740636645884,-851.19,0.0006,2]
[354712010,1740636645895,-467.96961399,0.0006,2]
[354712012,1740636645906,-16217.62646775,0.0006,2]
[354712015,1740636645920,-13706.64335104,0.0006,2]
[354712017,1740636645931,-251.10073731,0.0006,2]
[354712019,1740636645943,-1311.79520499,0.0006,2]
[354712021,1740636645954,-795.9961867,0.0006,2]
[354712024,1740636645973,-1081.03146575,0.0006,2]
[354712028,1740636646003,-4778.17631435,0.0006,2]
[354712030,1740636646014,-112297.84458624,0.0006,2]
[354712864,1740637376559,-150.0,0.00017829,2]
[354712866,1740637520062,4759.00341792,9e-05,2]
[354712867,1740637694082,2000.0,0.000197,120]
[354712868,1740637708094,442.07868839,9.828e-05,2]
[354712869,1740637708529,-176.20415818,0.000149,2]
[354712870,1740637708553,-393.64219701,0.000149,2]
[354712871,1740637708577,-153.71562388,0.00014999,2]
[354712872,1740637708602,-177.59023475,0.00014999,2]
[354712873,1740637708626,-465.8661538,0.00014999,2]
[354712874,1740637708653,-4632.98163238,0.00015,2]
[354712882,1740637753831,-929.0959,0.000149,2]
[354712883,1740637753855,-5070.9041,0.000149,2]
[354712892,1740637831811,-11069.4425,0.000149,2]
[354712893,1740637831821,-1000.0,0.000149,2]
[354712895,1740637831830,-2500.0,0.000149,2]
[354712897,1740637831840,-1583.982967,0.000149,2]
[354712902,1740637831916,-1060.783933,0.000149,2]
[354712903,1740637831925,-77.9505445,0.0001499,2]
[354712904,1740637831937,-432.2800081,0.0001499,2]
[354712905,1740637831947,-167.63189637,0.0001499,2]
[354712906,1740637831956,-216371.00647013,0.00015,2]
[354712907,1740637832068,-1006.846155,0.00015,2]
[354712908,1740637832161,-1792.01967,0.00015,2]
[354712911,1740637832172,-508.47198714,0.00015,2]
[354712928,1740637837652,-1340.17476812,0.00015,2]
[354712929,1740637837672,-1510.92569718,0.00015,2]
[354712930,1740637837685,-3744.3470111,0.00015,2]
[354712931,1740637837762,-13885.02116116,0.00015,2]
[354712932,1740637837855,-628.475,0.00015,2]
[354712933,1740637837875,-54716.6879812,0.00015,2]
[354712934,1740637837896,-1249.3,0.00015,2]
[354712935,1740637837972,-13535.89949012,0.00015,2]
[354712936,1740637837996,-6269.49777717,0.00015,2]
[354712938,1740637839978,-88572.4267951,0.00015,2]
[354712939,1740637839994,-3450.9429449,0.00015,2]
[354712940,1740637840009,-614.99437967,0.00015,2]
[354712941,1740637840024,-8949.05972774,0.00015,2]
[354712942,1740637840053,-1925.99714024,0.00015,2]
[354712943,1740637840066,-619.02104693,0.00015,2]
[354712950,1740637843042,-14399.04819732,0.00015,2]
[354712951,1740637843054,-12657.58802971,0.00015,2]
[354712952,1740637843066,-924.09358818,0.00015,2]
[354712953,1740637843193,-554.202,0.00015,2]
[354712962,1740637845915,-466.87490156,0.00015,2]
[354712963,1740637846009,-284.98739833,0.00015,2]
[354712964,1740637846021,-639.5899175,0.00015,2]
[354712965,1740637846032,-307.59580023,0.00015,2]
[354712966,1740637846045,-11412.38381349,0.00015,2]
[354712967,1740637846058,-690.104,0.00015,2]
[354712968,1740637846122,-8363.42288141,0.00015,2]
[354712969,1740637846133,-172749.85986791,0.00015,2]
[354712972,1740637947575,-20000.0,0.00015,2]
[354712973,1740637971780,-688.6621,0.000149,2]
[354712974,1740637971986,-311.3379,0.000149,2]
[354712975,1740638007940,-2188.6621,0.000149,2]
[354712976,1740638007967,-3811.3379,0.00015,2]
[354712977,1740638052699,-160.71553827,0.00014973,2]
[354712978,1740638052729,-162.43519933,0.00014973,2]
[354712979,1740638052759,-266.41588234,0.00014973,2]
[354712980,1740638052778,-160.71553827,0.00015,2]
[354712981,1740638052803,-162.43519933,0.00015,2]
[354712982,1740638052814,-266.41588234,0.00015,2]
[354712983,1740638052826,-16420.86676012,0.00015,2]
[354712984,1740638096988,-43000.0,0.00015,2]
[354712985,1740638182289,-1672.50498922,0.000149,2]
[354712986,1740638182321,-1232.6827,0.000149,2]
[354712987,1740638182352,-300.0,0.00014999,2]
[354712988,1740638182383,-150.0,0.00014999,2]
[354712989,1740638182500,-2723.20873922,0.00015,2]
[354712990,1740638321943,-150.0,0.000147,2]
[354712991,1740638322584,-150.0,0.000147,2]
[354712996,1740639032031,-500.569,0.000147,2]
[354712997,1740639032040,-178.458,0.000147,2]
[354712998,1740639032049,-300.0,0.00014899,2]
[354712999,1740639032059,-3197.8518,0.000149,2]
[354713000,1740639032068,-527.3097,0.000149,2]
[354713001,1740639032077,-481.87552337,0.000149,2]
[354713002,1740639032089,-963.75,0.000149,2]
[354713003,1740639032117,-59.62896691,0.000149,2]
[354713004,1740639032127,-447.76834332,0.000149,2]
[354713005,1740639032141,-2777.03615668,0.000149,2]
[354713006,1740639032150,-250.38524348,0.00014999,2]
[354713007,1740639032160,-317.18029984,0.00015,2]
[354713008,1740639032174,-1936.67725654,0.00015,2]
[354713009,1740639032188,-4686.82404504,0.00015,2]
[354713010,1740639032201,-5695.5,0.00015,2]
[354713011,1740639032265,-1209.496,0.00015,2]
[354713012,1740639032310,-520.41993916,0.00015,2]
[354713013,1740639032353,-9757.12817506,0.00015,2]
[354713014,1740639032365,-317.2,0.00015,2]
[354713015,1740639032376,-15655.99891127,0.00015,2]
[354713016,1740639032392,-72883.51319769,0.00015,2]
[354713017,1740639032403,-123786.33834535,0.00015,2]
[354713018,1740639032415,-99562.2255166,0.00015,2]
[354713019,1740639032424,-150963.10976501,0.00015,2]
[354713020,1740639032435,-98188.91628188,0.00015,2]
[354713042,1740639038031,-17330.39199999,0.00015,2]
[354713043,1740639038044,-43349.24905188,0.00015,2]
[354713044,1740639038074,-14810.90809087,0.00015,2]
[354713045,1740639038261,-11336.14960265,0.00015,2]
[354713046,1740639038272,-81781.93319671,0.00015,2]
[354713230,1740639040232,-434.11887626,0.00015,2]
[354713244,1740639040375,-17321.443608,0.00015,2]
[354713246,1740639040387,-1797.73560699,0.00015,2]
[354713248,1740639040397,-2093.22199195,0.00015,2]
[354713260,1740639040523,-947.72946,0.00015,2]
[354713265,1740639040567,-880389.36462319,0.00015,2]
[354713663,1740639044564,-613.38781924,0.00015,2]
[354713811,1740639046070,-305.79816107,0.00015,2]
[354713814,1740639046081,-1383.6254,0.00015,2]
[354713841,1740639046300,-2555.4941878,0.00015,2]
[354713844,1740639046312,-136925.56339101,0.00015,2]
[354713846,1740639046321,-532.95189,0.00015,2]
[354713848,1740639046331,-215.94161825,0.000161,2]
[354713850,1740639046341,-150.0,0.0001639,2]
[354713852,1740639046354,-450.0,0.0001639,2]
[354713854,1740639046363,-500.82321177,0.00018264,2]
[354713856,1740639046373,-151.22459796,0.00018264,2]
[354713858,1740639046382,-156.59159307,0.00018657,2]
[354713860,1740639046391,-179.54541445,0.000199,2]
[354713862,1740639046402,-53287.13801273,0.0002,4]
[354714126,1740639291327,2000.0,0.000207,120]
[354714128,1740639456650,-267.285,0.00014824,2]
[354714129,1740639456674,-150.0,0.00014899,2]
[354714130,1740639456699,-6582.715,0.000149,2]
[354714133,1740640118248,-300.0,0.00014899,2]
[354714134,1740640118270,-150.0,0.000149,2]
[354714135,1740640118292,-1000.0,0.000149,2]
[354714136,1740640118312,-50.0,0.000149,2]
[354714144,1740640232319,-5558.5005,0.000149,2]
[354714145,1740640232329,-187.89157041,0.000149,2]
[354714146,1740640232340,-46074.1263367,0.000149,2]
[354714147,1740640232350,-450.0,0.00016308,2]
[354714148,1740640232360,-150.0,0.00016389,2]
[354714149,1740640232370,-150.0,0.0001639,2]
[354714150,1740640232380,-250.42070933,0.00019688,2]
[354714151,1740640232390,-2531.7256,0.000198,2]
[354714152,1740640232400,-60925.5761,0.000199,2]
[354714153,1740640232411,-538.9305,0.000199,2]
[354714154,1740640232421,-4290.2533,0.000199,2]
[354714155,1740640232432,-14591.8881,0.000199,2]
[354714156,1740640232443,-1354.72904127,0.000199,2]
[354714157,1740640232455,-521.01867,0.000199,2]
[354714158,1740640232467,-52852.49583491,0.0002,4]
[354714159,1740640232479,-8300.0,0.0002,4]
[354714160,1740640232489,-216291.91058675,0.0002,4]
[354714161,1740640232501,-1290.0,0.0002,4]
[354714162,1740640232514,-9988.60844733,0.0002,4]
[354714163,1740640232526,-10924.54536939,0.0002,4]
[354714164,1740640232538,-17259.14400613,0.0002,4]
[354714165,1740640232550,-5068.89012956,0.0002,4]
[354714166,1740640232562,-64859.31284892,0.0002,4]
[354714167,1740640232573,-956.56089636,0.000205,2]
[354714168,1740640232583,-313.45501856,0.000206,2]
[354714169,1740640232593,-1059.12995306,0.000207,2]
[354714170,1740640232603,-300.3,0.00021,2]
[354714171,1740640232614,-157.96,0.00021918,2]
[354714172,1740640232624,-233.86439036,0.000224,3]
[354714173,1740640232635,-233.86439031,0.000224,3]
[354714174,1740640232645,-233.86439031,0.000224,3]
[354714175,1740640232655,-233.86439031,0.000224,3]
[354714176,1740640232673,-500.0,0.00022711,2]
[354714177,1740640232687,-500.0,0.00022711,2]
[354714178,1740640232698,-500.0,0.00022711,2]
[354714179,1740640232709,-640.456,0.00023039,2]
[354714180,1740640232719,-233.86439031,0.00023934,3]
[354714181,1740640232729,-150.0,0.00024038,7]
[354714182,1740640232741,-1354.72904122,0.00024844,2]
[354714183,1740640232751,-521.01868,0.000249,2]
[354714184,1740640232762,-956.56089633,0.00025378,2]
[354714185,1740640232778,-233.86439031,0.00025693,4]
[354714186,1740640232789,-1000.0,0.00026453,2]
[354714187,1740640232803,-156.47,0.00026849,2]
[354714188,1740640232814,-153.05,0.00026849,2]
[354714189,1740640232825,-165.93,0.00026849,2]
[354714190,1740640232835,-250.0,0.00027,2]
[354714191,1740640232846,-811.22133764,0.00027014,2]
[354714192,1740640232856,-233.86439031,0.00027452,4]
[354714193,1740640232867,-4070.80143291,0.00028014,2]
[354714194,1740640232878,-9134.20607118,0.0002809,2]
[354714196,1740640232888,-367.43836312,0.00028729,5]
[354714198,1740640232901,-300.0,0.00029,2]
[354714201,1740640232912,-233.86439031,0.0002921,5]
[354714203,1740640232922,-1000.0,0.00029759,2]
[354714205,1740640232933,-1354.72904122,0.00029789,2]
[354714207,1740640232943,-521.01867,0.000299,2]
[354714209,1740640232953,-956.56089633,0.00030256,2]
[354714211,1740640232963,-233.86439031,0.00030969,5]
[354714212,1740640232974,-500.0,0.00031,2]
[354714213,1740640232984,-261.96775685,0.00031,5]
[354714214,1740640232994,-500.0,0.00031014,30]
[354714215,1740640233004,-500.0,0.00031014,30]
[354714216,1740640233014,-500.0,0.00031014,30]
[354714217,1740640233024,-500.0,0.00031014,30]
[354714218,1740640233035,-500.0,0.00031014,30]
[354714219,1740640233045,-233.86439031,0.00032728,6]
[354714220,1740640233056,-1000.0,0.00033066,2]
[354714221,1740640233066,-227.45,0.00033496,2]
[354714222,1740640233077,-166.39,0.00034418,2]
[354714223,1740640233087,-189.62,0.00034473,120]
[354714224,1740640233099,-233.86439031,0.00034486,6]
[354714225,1740640233109,-1354.72904122,0.00034733,2]
[354714226,1740640233308,-505.22,0.00034864,2]
[354714227,1740640233318,-521.01868,0.000349,2]
[354714228,1740640233327,-956.56089633,0.00035133,2]
[354714229,1740640233337,-181.75,0.00035391,120]
[354714230,1740640233346,-5550.0,0.000355,5]
[354714231,1740640233355,-150.287955,0.00035616,14]
[354714232,1740640233365,-150.287955,0.00035616,14]
[354714233,1740640233374,-175.951404,0.00035616,14]
[354714234,1740640233384,-154.473826,0.00035616,14]
[354714235,1740640233394,-174.704972,0.00035616,14]
[354714236,1740640233403,-199.892717,0.00035616,14]
[354714237,1740640233413,-250.0,0.00035629,2]
[354714238,1740640233422,-227.45,0.0003576,2]
[354714239,1740640233431,-199.892717,0.0003589,14]
[354714240,1740640233441,-150.53,0.00036004,2]
[354714241,1740640233450,-199.892717,0.00036164,14]
[354714242,1740640233460,-233.86439031,0.00036245,7]
[354714243,1740640233470,-1000.0,0.00036372,2]
[354714244,1740640233479,-199.892717,0.00036438,14]
[354714245,1740640233489,-638.24661188,0.00036479,2]
[354714246,1740640233498,-233.86439031,0.00038003,8]
[354714247,1740640233508,-227.45,0.00038024,2]
[354714248,1740640233517,-150.287955,0.00039449,14]
[354714249,1740640233527,-199.892717,0.00039449,14]
[354714250,1740640233537,-1354.72904122,0.00039678,2]
[354714251,1740640233547,-1000.0,0.00039679,2]
[354714252,1740640233556,-1000.0,0.00039679,5]
[354714253,1740640233566,-1000.0,0.00039679,5]
[354714254,1740640233575,-1000.0,0.00039679,5]
[354714255,1740640233585,-1000.0,0.00039679,5]
[354714256,1740640233594,-1000.0,0.00039679,5]
[354714257,1740640233604,-1000.0,0.00039679,5]
[354714258,1740640233613,-1000.0,0.00039679,5]
[354714259,1740640233622,-1000.0,0.00039679,5]
[354714260,1740640233632,-1000.0,0.00039679,5]
[354714261,1740640233642,-1000.0,0.00039679,5]
[354714262,1740640233652,-1000.0,0.00039679,5]
[354714263,1740640233661,-1000.0,0.00039679,5]
[354714264,1740640233670,-1000.0,0.00039679,5]
[354714265,1740640233679,-1058.0,0.00039679,5]
[354714266,1740640233688,-199.892717,0.00039723,14]
[354714267,1740640233697,-233.86439031,0.00039762,8]
[354714268,1740640233707,-521.01868,0.000399,2]
[354714269,1740640233716,-199.892717,0.00039997,14]
[354714270,1740640233726,-956.56089633,0.00040011,15]
[354714271,1740640233735,-227.45,0.00040288,2]
[354714272,1740640233745,-150.287955,0.00040642,14]
[354714273,1740640233754,-199.892717,0.00040642,14]
[354714274,1740640233763,-199.892717,0.00041095,14]
[354714275,1740640233776,-1000.0,0.00041095,120]
[354714276,1740640233786,-1500.0,0.00041096,120]
[354714277,1740640233795,-1000.0,0.00041123,120]
[354714278,1740640233804,-489.81412805,0.0004115,120]
[354714279,1740640233813,-181.75,0.0004129,120]
[354714280,1740640233822,-199.892717,0.00041369,14]
[354714281,1740640233831,-233.86439031,0.00041521,9]
[354714282,1740640233839,-199.892717,0.00041643,14]
[354714283,1740640233848,-34800.57164889,0.00042,120]
[354714284,1740640233862,-10226.41340714,0.00042,120]
[354714285,1740640233877,-2533.90000003,0.00042,120]
[354714286,1740640233890,-2340.63481528,0.00042,120]
[354714287,1740640238215,-769.22313,0.00042,120]
[354714288,1740640238267,-257.97850835,0.00042,120]
[354714289,1740640238317,-2167.54890997,0.00042,120]
[354714290,1740640238326,-227.45,0.00042552,2]
[354714291,1740640238335,-153.05,0.00042583,2]
[354714292,1740640238344,-165.93,0.00042583,2]
[354714293,1740640238353,-292.37,0.00043226,2]
[354714294,1740640238363,-233.86439031,0.00043279,9]
[354714295,1740640238372,-200.0,0.00043294,2]
[354714296,1740640238384,-520.12,0.00043331,2]
[354714297,1740640238395,-292.37,0.00043454,2]
[354714298,1740640238405,-292.37,0.00043681,2]
[354714299,1740640238414,-292.37,0.00043909,2]
[354714300,1740640238425,-197.5,0.00044077,120]
[354714301,1740640238435,-292.37,0.00044136,2]
[354714302,1740640238444,-292.37,0.00044364,2]
[354714303,1740640238454,-292.37,0.00044591,2]
[354714304,1740640238463,-1354.72904122,0.00044622,15]
[354714305,1740640238472,-640.456,0.00044779,71]
[354714306,1740640238482,-227.45,0.00044816,2]
[354714307,1740640238491,-292.37,0.00044819,2]
[354714308,1740640238500,-956.56089633,0.00044889,15]
[354714309,1740640238509,-521.01867,0.000449,2]
[354714310,1740640238518,-151.0,0.00045,120]
[354714311,1740640238528,-233.86439031,0.00045038,10]
[354714312,1740640238537,-292.37,0.00045046,2]
[354714313,1740640238546,-292.37,0.00045274,2]
[354714314,1740640238555,-292.37,0.00045501,2]
[354714315,1740640238565,-1008.0,0.00045728,7]
[354714316,1740640238574,-292.37,0.00045729,2]
[354714317,1740640238583,-292.37,0.00045956,2]
[354714318,1740640238592,-292.37,0.00046184,2]
[354714319,1740640238602,-155.57,0.00046379,2]
[354714320,1740640238611,-292.37,0.00046411,2]
[354714321,1740640238620,-1500.0,0.000466,2]
[354714322,1740640238629,-151.0,0.0004663,120]
[354714323,1740640238638,-292.37,0.00046639,2]
[354714324,1740640238648,-233.86439031,0.00046797,10]
[354714325,1740640238657,-155.57,0.00046801,2]
[354714326,1740640238666,-292.37,0.00046866,2]
[354714327,1740640238675,-227.45,0.0004708,2]
[354714329,1740640238685,-292.37,0.00047094,2]
[354714331,1740640238694,-181.75,0.00047188,120]
[354714332,1740640238703,-155.57,0.00047223,2]
[354714333,1740640238712,-292.37,0.00047321,2]
[354714334,1740640238721,-292.37,0.00047549,2]
[354714335,1740640238730,-155.57,0.00047644,2]
[354714336,1740640238739,-7500.0,0.000479,120]
[354714338,1740640238748,-299.5728207,0.00047966,30]
[354714340,1740640238758,-171.45,0.00047999,15]
[354714342,1740640238768,-17710.95402453,0.00048,30]
[354714345,1740640238789,-150.0,0.00041521,9]
[354714347,1740640238798,-13420.73173644,0.00048,30]
[354714538,1740640240637,-150.0,0.00042583,2]
[354714540,1740640240647,-450.02936322,0.00048,30]
[354714542,1740640240659,-22950.0,0.00048,30]
[354714561,1740640240839,-709.84716856,0.00048,30]
[354714563,1740640240851,-269.13443944,0.00048,30]
[354714565,1740640240863,-435.44320889,0.00048,30]
[354715100,1740640246327,-28032.5288456,0.00048,30]
[354715110,1740640246400,-921.01448562,0.00048,30]
[354715116,1740640246447,-252.2469785,0.00048,30]
[354715130,1740640246718,-5320.4,0.00048,30]
[354715131,1740640246729,-282.90001,0.00048,30]
[354715134,1740641136425,3000.0,8e-05,2]
[354715135,1740641136461,8929.94892043,8e-05,2]
[354715136,1740641166119,333.00399433,8e-05,2]
[354715169,1740641431583,-300.0,0.00014989,2]
[354715170,1740641431593,-200.80457559,0.0001499,2]
[354715171,1740641431621,-17307.7955816,0.0001499,2]
[354715172,1740641431754,-1506.20226366,0.0001499,2]
[354715173,1740641431764,-150.0,0.00014994,2]
[354715174,1740641431773,-150.0,0.00014999,2]
[354715175,1740641431782,-5039.95839878,0.00015,2]
[354715176,1740641431793,-5419.58199733,0.00015,2]
[354715177,1740641431810,-6983.9256312,0.00015,2]
[354715178,1740641431822,-633.91785618,0.00015,2]
[354715179,1740641431833,-1238.04,0.00015,2]
[354715198,1740641437680,-1234.45498664,0.00015,2]
[354715349,1740641439568,-57720.02602817,0.00015,2]
[354715367,1740641439740,-366.97,0.00015,2]
[354715369,1740641439751,-2452.45000008,0.00015,2]
[354715384,1740641439885,-4581.8606386,0.00015,2]
[354715673,1740641442591,-782.29663183,0.00015,2]
[354715675,1740641442601,-3802.71477513,0.00015,2]
[354715695,1740641442935,-750.29983086,0.00015,2]
[354715697,1740641442949,-333.604,0.00015,2]
[354716008,1740641445577,-4332.2472,0.00015,2]
[354716038,1740641445739,-437.8375,0.00015,2]
[354716366,1740642340976,-193.35103084,0.0001475,2]
[354716367,1740642340999,-150.0,0.00014775,2]
[354716368,1740642341022,-500.0,0.000148,2]
[354716369,1740642341044,-193.35103084,0.000148,2]
[354716370,1740642341066,-5643.29793832,0.0001481,2]
[354716384,1740642631704,-250.0,0.000142,2]
[354716385,1740642631714,-3343.98936682,0.00014437,2]
[354716386,1740642631723,-3656.542975,0.00014464,2]
[354716387,1740642631733,-150.0,0.000145,2]
[354716388,1740642631742,-153.03,0.00014537,2]
[354716389,1740642631751,-150.0,0.00014849,2]
[354716390,1740642631760,-6703.76946232,0.0001485,2]
[354716391,1740642631771,-6745.17711784,0.0001485,2]
[354716392,1740642631783,-13613.4999,0.0001485,2]
[354716393,1740642631794,-18208.37614613,0.0001485,2]
[354716394,1740642631803,-343.23319,0.0001485,2]
[354716395,1740642631812,-2387.76258696,0.0001485,2]
[354716396,1740642631821,-10947.37807691,0.000149,2]
[354716397,1740642631832,-2503.29225182,0.000149,2]
[354716398,1740642631843,-3598.57857127,0.000149,2]
[354716399,1740642631853,-848.7487,0.000149,2]
[354716400,1740642631862,-99.94016232,0.000149,2]
[354716401,1740642631874,-217.49473768,0.000149,2]